fUSD/lending_fUSD_20260313
["ID","MTS","AMOUNT","RATE_DAILY","PERIOD"]
[408305529,1773387031487,-500.0,0.00014201,2]
[408305530,1773387031496,-500.0,0.00014201,2]
[408305531,1773387031506,-1464.61810279,0.00014242,2]
[408305532,1773387031515,-150.0,0.00014272,2]
[408305533,1773387031526,-500.0,0.00014273,2]
[408305534,1773387031535,-500.0,0.00014273,2]
[408305535,1773387031545,-500.0,0.00014273,2]
[408305536,1773387031554,-393.08543644,0.00014273,2]
[408305537,1773387031564,-506.03669351,0.00014273,2]
[408305538,1773387031573,-500.81300917,0.00014273,2]
[408305539,1773387031583,-219.51619711,0.00014273,2]
[408305540,1773387031593,-500.0,0.00014273,2]
[408305541,1773387031602,-500.0,0.00014273,2]
[408305542,1773387031611,-500.0,0.00014273,2]
[408305543,1773387031622,-500.0,0.00014289,2]
[408305544,1773387031632,-500.0,0.00014289,2]
[408305545,1773387031641,-500.0,0.00014289,2]
[408305547,1773387031650,-515.52448038,0.00014289,2]
[408305549,1773387031660,-501.88920658,0.00014289,2]
[408305551,1773387031669,-540.40783545,0.00014289,2]
[408305552,1773387031679,-500.0,0.00014289,2]
[408305554,1773387031692,-500.0,0.00014289,2]
[408305557,1773387031701,-500.0,0.00014289,2]
[408305558,1773387031711,-500.0,0.00014289,2]
[408305561,1773387031720,-500.0,0.00014289,2]
[408305562,1773387031731,-500.0,0.00014289,2]
[408305564,1773387031740,-500.0,0.00014289,2]
[408305567,1773387031750,-500.0,0.00014289,2]
[408305568,1773387031759,-244.17994813,0.00014289,2]
[408305570,1773387031769,-10129.4191272,0.0001429,7]
[408305572,1773387031779,-1940.51,0.00014343,2]
[408305574,1773387031789,-561.33,0.00014392,2]
[408305577,1773387031799,-356.11966074,0.00014489,2]
[408305578,1773387031808,-753.9553456,0.00014489,2]
[408305580,1773387031818,-686.69010027,0.00014489,2]
[408305582,1773387031827,-773.07600651,0.00014489,2]
[408305584,1773387031837,-1484.76088389,0.00014592,2]
[408305586,1773387031846,-1361.82,0.000146,2]
[408305588,1773387031855,-500.0,0.00014821,2]
[408305590,1773387031863,-1000.0,0.00014821,2]
[408305592,1773387031873,-1000.0,0.00014821,2]
[408305593,1773387031882,-500.0,0.00014821,2]
[408305594,1773387031891,-3955.25647665,0.00014826,2]
[408305595,1773387031901,-561.33,0.00014856,2]
[408305596,1773387031910,-1464.61810276,0.00014871,2]
[408305597,1773387031920,-250.0,0.00015,2]
[408305598,1773387031929,-561.33,0.0001532,2]
[408305599,1773387031939,-1637.38342981,0.00015368,2]
[408305600,1773387031948,-1500.0,0.00015368,2]
[408305601,1773387031958,-255.0,0.00015399,2]
[408305602,1773387031967,-3955.25647665,0.0001546,2]
[408305603,1773387031976,-1464.61810276,0.00015499,2]
[408305604,1773387031986,-420.0,0.00015554,2]
[408305605,1773387031996,-1680.0,0.0001562,2]
[408305606,1773387032005,-561.33,0.00015784,2]
[408305607,1773387032014,-2000.0,0.00015916,2]
[408305608,1773387032024,-3955.25647665,0.00016095,2]
[408305609,1773387032033,-1464.61810276,0.00016128,2]
[408305610,1773387032042,-561.33,0.00016249,2]
[408305611,1773387032051,-16922.2473,0.00016338,2]
[408305612,1773387032060,-1151.11556502,0.00016464,2]
[408305613,1773387032070,-331.0,0.00016612,2]
[408305614,1773387032079,-561.33,0.00016713,2]
[408305615,1773387032088,-3955.25647665,0.00016729,2]
[408305616,1773387032099,-1464.61810276,0.00016757,2]
[408305617,1773387032107,-1214.0,0.00016975,2]
[408305618,1773387032117,-923.0,0.00016975,2]
[408305619,1773387032126,-620.0,0.00016975,2]
[408305620,1773387032135,-300.0,0.00017,2]
[408305621,1773387032144,-587.0,0.00017037,2]
[408305622,1773387032154,-160.0,0.00017149,2]
[408305623,1773387032163,-561.33,0.00017177,2]
[408305624,1773387032173,-2351.0,0.00017182,2]
[408305625,1773387032183,-1060.01,0.00017284,2]
[408305626,1773387032192,-3955.25647665,0.00017363,2]
[408305627,1773387032201,-1464.61810276,0.00017385,2]
[408305628,1773387032211,-250.0,0.00017464,2]
[408305629,1773387032220,-561.33,0.00017641,2]
[408305630,1773387032229,-150.0,0.00017644,2]
[408305631,1773387032238,-500.0,0.00017644,2]
[408305632,1773387032247,-150.0,0.00017644,2]
[408305633,1773387032256,-500.0,0.00017644,2]
[408305634,1773387032266,-150.0,0.00017644,2]
[408305635,1773387032275,-150.0,0.00017644,2]
[408305636,1773387032284,-150.0,0.00017644,2]
[408305637,1773387032293,-150.0,0.00017644,2]
[408305638,1773387032302,-152.33368801,0.00017699,2]
[408305639,1773387032311,-500.0,0.00017699,2]
[408305640,1773387032320,-252.39007234,0.00017699,2]
[408305641,1773387032329,-500.0,0.00017699,2]
[408305642,1773387032338,-150.0,0.00017699,2]
[408305643,1773387032347,-202.59725118,0.00017699,2]
[408305644,1773387032357,-150.0,0.00017699,2]
[408305645,1773387032365,-257.72101256,0.00017754,2]
[408305646,1773387032375,-237.03813108,0.00017754,2]
[408305647,1773387032385,-150.0,0.00017754,2]
[408305648,1773387032395,-211.946409,0.00017754,2]
[408305649,1773387032406,-150.0,0.00017808,2]
[408305650,1773387032415,-150.0,0.00017863,2]
[408305651,1773387032424,-250.0,0.00017918,2]
[408305652,1773387032434,-3955.25647665,0.00017997,2]
[408305653,1773387032444,-1464.61810276,0.00018014,2]
[408305654,1773387032454,-1060.01,0.00018149,2]
[408305655,1773387032463,-1999.0,0.00018499,2]
[408305656,1773387032472,-630.0,0.00018533,2]
[408305657,1773387032481,-328.94,0.00018533,2]
[408305658,1773387032490,-150.99,0.00018533,2]
[408305659,1773387032499,-9999.99,0.00018533,2]
[408305660,1773387032509,-8288.36,0.00018533,2]
[408305661,1773387032517,-8307.53967868,0.00018533,2]
[408305662,1773387032530,-2139.64215827,0.00018533,2]
[408305663,1773387032541,-1001.0,0.00018533,2]
[408305664,1773387032551,-2454.25531392,0.00018533,2]
[408305666,1773387037479,-150.0,0.00018533,2]
[408305668,1773387037488,-1613.11087732,0.00018533,2]
[408305669,1773387037574,-712.83253794,0.00018533,2]
[408305670,1773387037587,-691.58645727,0.00018533,2]
[408305674,1773387039764,-2767.536,0.0001419,2]
[408305675,1773387039774,-6023.6929766,0.00018533,2]
[408305676,1773387039784,-3955.25647665,0.00018632,2]
[408305677,1773387039794,-1464.61810276,0.00018643,2]
[408305678,1773387039804,-1999.0,0.00018773,2]
[408305679,1773387039814,-166.66,0.00018822,2]
[408305680,1773387039824,-3292.0,0.000189,2]
[408305681,1773387039832,-2000.0,0.00018938,2]
[408305682,1773387039842,-1060.01,0.00019013,2]
[408305683,1773387039852,-376.26074035,0.00019065,2]
[408305684,1773387039862,-376.24,0.00019065,2]
[408305685,1773387039872,-376.24,0.0001908,2]
[408305686,1773387039882,-2939.36124216,0.00019266,2]
[408305687,1773387039898,-749.72188916,0.00016975,2]
[408305688,1773387040034,-370.96268495,0.00016975,2]
[408305690,1773387040274,-222.31542589,0.00016975,2]
[408305691,1773387040284,-1015.89523449,0.00019266,2]
[408305692,1773387040294,-1464.61810276,0.00019271,2]
[408305694,1773387040479,-1000.0,0.00019309,2]
[408305695,1773387040489,-10000.0,0.00019356,7]
[408305696,1773387040499,-10000.0,0.00019356,7]
[408305697,1773387040509,-10000.0,0.00019356,7]
[408305698,1773387040518,-10000.0,0.00019356,7]
[408305699,1773387040527,-10000.0,0.00019356,7]
[408305700,1773387040536,-10000.0,0.00019356,7]
[408305701,1773387040547,-10000.0,0.00019356,7]
[408305702,1773387040555,-3191.0,0.00019356,7]
[408305703,1773387040566,-166.66,0.00019443,2]
[408305704,1773387040575,-201.3872862,0.00019452,2]
[408305705,1773387040584,-1086.01859809,0.000196,2]
[408305706,1773387040593,-916.08034876,0.000196,2]
[408305707,1773387040602,-2000.0,0.000197,2]
[408305708,1773387040612,-154.91,0.00019771,2]
[408305709,1773387040621,-200.0,0.00019863,2]
[408305710,1773387040630,-1060.01,0.00019877,2]
[408305711,1773387040639,-151.0,0.00019877,2]
[408305712,1773387040648,-151.0,0.00019877,2]
[408305713,1773387040658,-273.150408,0.00019877,2]
[408305714,1773387040667,-273.150408,0.00019877,2]
[408305715,1773387040676,-273.150408,0.00019877,2]
[408305716,1773387040687,-273.150408,0.00019877,2]
[408305717,1773387040698,-500.0,0.00019898,2]
[408305718,1773387040707,-500.0,0.00019898,2]
[408305719,1773387040716,-502.07751418,0.00019898,2]
[408305720,1773387040727,-151.0,0.00019898,2]
[408305721,1773387040736,-2549.50369884,0.000199,2]
[408305722,1773387040748,-1405.75277781,0.000199,2]
[408305723,1773387040757,-151.0,0.000199,2]
[408305724,1773387040767,-151.0,0.000199,2]
[408305725,1773387040776,-151.0,0.000199,2]
[408305726,1773387040786,-151.0,0.000199,2]
[408305727,1773387040795,-177.53562892,0.000199,3]
[408305728,1773387040806,-156.726652,0.000199,2]
[408305729,1773387040815,-1464.61810276,0.000199,2]
[408305730,1773387040825,-188.138176,0.000199,2]
[408305731,1773387040834,-326.84043883,0.000199,2]
[408305732,1773387040843,-589.24209404,0.00019973,2]
[408305733,1773387040853,-501.00358106,0.00019973,2]
[408305734,1773387040862,-500.32368848,0.00019973,2]
[408305735,1773387040871,-338.80041211,0.00019973,2]
[408305736,1773387040880,-500.0,0.00019973,2]
[408305737,1773387040889,-500.0,0.00019973,2]
[408305738,1773387040899,-150.10562592,0.00019973,2]
[408305739,1773387040908,-500.0,0.00019973,2]
[408305740,1773387040917,-500.0,0.00019973,2]
[408305741,1773387040926,-500.0,0.00019973,2]
[408305742,1773387040935,-500.0,0.00019973,2]
[408305743,1773387040944,-151.0,0.00019975,2]
[408305744,1773387040953,-153.456598,0.00019975,2]
[408305745,1773387040962,-300.0,0.00019999,2]
[408305746,1773387040971,-500.0,0.00019999,2]
[408305747,1773387040980,-244.26658027,0.0002,2]
[408305760,1773387042628,-558.764,0.00019975,2]
[408305761,1773387042638,-25.01482676,0.0002,2]
[408305762,1773387042647,-590788.96796086,0.0002,2]
[408305763,1773387042865,-150.0,0.00018533,2]
[408305764,1773387042875,-950.67399604,0.0002,2]
[408305769,1773387045452,-11883.95267639,0.0002,2]
[408305772,1773387045919,-3983.65,0.0002,2]
[408305773,1773387081608,238.25,0.000163,120]
[408305774,1773387096224,2095.56204064,0.00032877,120]
[408305780,1773387233987,500.0,0.0003287,120]
[408305782,1773387272706,214.43,0.000163,120]
[408305784,1773387319118,10000.0,0.00032877,120]
[408305788,1773387468560,192.98,0.000163,120]
[408305789,1773387469297,10000.0,0.00032877,120]
[408305831,1773387682099,173.69,0.000163,120]
[408305832,1773387693173,476.109,0.00013906,2]
[408305865,1773387899242,156.32,0.000163,120]
[408305868,1773387912902,1850.0,0.00032877,120]
[408305869,1773387953784,13818.95047092,0.00032877,120]
[408305870,1773387978803,180.65,0.00013432,2]
[408305872,1773388092088,250.77,0.000164,120]
[408305877,1773388230656,200.67,0.00025525,120]
[408305881,1773388231607,-300.0,0.00014089,2]
[408305882,1773388231617,-220.49846645,0.00014089,2]
[408305883,1773388231630,-461.17361602,0.00014089,2]
[408305884,1773388231661,-518.32791753,0.00014089,2]
[408305885,1773388231671,-1159.55763061,0.0001409,2]
[408305886,1773388231681,-410.53073771,0.0001409,2]
[408305887,1773388231716,-82.8982039,0.0001409,2]
[408305888,1773388231726,-180.77780097,0.0001409,2]
[408305889,1773388231736,-292.47728513,0.0001409,2]
[408305890,1773388231772,-1427.87,0.0001409,2]
[408305892,1773388231820,-3007.26199282,0.0001409,2]
[408305893,1773388231830,-2500.0,0.0001409,2]
[408305894,1773388231839,-500.0,0.00014173,2]
[408305895,1773388231849,-500.0,0.00014173,2]
[408305896,1773388231859,-500.0,0.00014173,2]
[408305897,1773388231868,-500.0,0.00014173,2]
[408305898,1773388231878,-500.0,0.00014173,2]
[408305899,1773388231887,-150.0,0.00014188,2]
[408305900,1773388231900,-500.0,0.00014189,2]
[408305901,1773388231909,-500.0,0.00014189,2]
[408305902,1773388231919,-500.0,0.00014189,2]
[408305903,1773388231928,-500.0,0.00014189,2]
[408305904,1773388231938,-500.0,0.00014189,2]
[408305905,1773388231948,-500.0,0.00014189,2]
[408305906,1773388231957,-500.0,0.00014189,2]
[408305907,1773388231967,-500.0,0.00014189,2]
[408305908,1773388231976,-500.0,0.00014189,2]
[408305909,1773388231986,-500.0,0.00014189,2]
[408305910,1773388231996,-500.0,0.00014189,2]
[408305911,1773388232009,-550.47413079,0.00014189,2]
[408305912,1773388232018,-500.0,0.00014189,2]
[408305913,1773388232028,-228.12604886,0.00014189,2]
[408305914,1773388232037,-94410.13800921,0.0001419,2]
[408305915,1773388232051,-3907.6671839,0.0001419,2]
[408305916,1773388232062,-31564.93078765,0.0001419,2]
[408305919,1773388237644,-1000.0,0.0001419,2]
[408305920,1773388237659,-500.0,0.00014289,2]
[408305921,1773388237669,-500.0,0.00014289,2]
[408305922,1773388237678,-500.0,0.00014289,2]
[408305923,1773388237688,-535.51183506,0.00014289,2]
[408305924,1773388237698,-261.45915393,0.00014289,2]
[408305925,1773388237708,-500.0,0.00014289,2]
[408305926,1773388237717,-502.54334763,0.00014289,2]
[408305927,1773388237727,-506.81196738,0.00014289,2]
[408305928,1773388237736,-500.0,0.00014289,2]
[408305929,1773388237746,-506.66605589,0.00014289,2]
[408305930,1773388237756,-513.03817385,0.00014289,2]
[408305931,1773388237765,-297.89846423,0.00014289,2]
[408305932,1773388237775,-500.0,0.00014289,2]
[408305933,1773388237784,-247.724301,0.00014545,7]
[408305934,1773388237794,-1000.0,0.00014721,2]
[408305935,1773388237803,-1000.0,0.00014721,2]
[408305936,1773388237812,-1000.0,0.00014721,2]
[408305937,1773388237822,-1000.0,0.00014721,2]
[408305938,1773388237832,-1159.55763055,0.00014736,2]
[408305939,1773388237843,-4727.60927789,0.00014736,2]
[408305940,1773388237854,-500.0,0.00014736,2]
[408305941,1773388237863,-493.42894154,0.0001492,2]
[408305942,1773388237872,-509.80182332,0.00015268,2]
[408305943,1773388237882,-1000.0,0.00015268,2]
[408305944,1773388237895,-1000.0,0.00015268,2]
[408305945,1773388237905,-1000.0,0.00015268,2]
[408305946,1773388237914,-255.0,0.00015309,2]
[408305947,1773388237923,-1159.55763055,0.00015381,2]
[408305948,1773388237932,-921.7233802,0.00015381,2]
[408305949,1773388237944,-775.44489547,0.00015381,2]
[408305950,1773388237995,-500.0,0.00015381,2]
[408305951,1773388238009,-2530.44100222,0.00015381,2]
[408305952,1773388238018,-316.07257926,0.00015498,2]
[408305953,1773388238028,-136.98946661,0.00015498,2]
[408305954,1773388238039,-113.01053339,0.00015498,2]
[408305955,1773388238049,-203.8379162,0.00015498,2]
[408305956,1773388238058,-300.1591244,0.00015498,2]
[408305958,1773388238068,-600.0,0.00015498,2]
[408305959,1773388238079,-500.0,0.00015498,2]
[408305960,1773388238089,-1680.0,0.00015498,2]
[408305961,1773388238099,-493.42894154,0.0001575,2]
[408305962,1773388238108,-1159.55763055,0.00016027,2]
[408305963,1773388238117,-180.77780095,0.00016027,2]
[408305964,1773388238127,-4727.60927789,0.00016027,2]
[408305965,1773388238136,-433.0,0.00016515,2]
[408305966,1773388238146,-493.42894154,0.0001658,2]
[408305967,1773388238154,-1159.55763055,0.00016672,2]
[408305968,1773388238164,-41859.19,0.00016832,2]
[408305969,1773388238174,-500.0,0.00016963,2]
[408305970,1773388238182,-200.67,0.00017017,2]
[408305971,1773388238191,-500.0,0.00017018,2]
[408305972,1773388238201,-2351.0,0.00017048,2]
[408305973,1773388238210,-2000.0,0.00017071,2]
[408305974,1773388238220,-500.0,0.00017073,2]
[408305975,1773388238229,-150.0,0.00017091,2]
[408305976,1773388238243,-846.83,0.00017117,2]
[408305977,1773388238257,-500.0,0.00017128,2]
[408305978,1773388238267,-500.0,0.00017183,2]
[408305979,1773388238276,-3240.0,0.00017216,2]
[408305980,1773388238286,-500.0,0.00017238,2]
[408305981,1773388238295,-200.0,0.0001724,2]
[408305982,1773388238307,-500.0,0.00017293,2]
[408305983,1773388238317,-1159.55763055,0.00017318,2]
[408305984,1773388238328,-500.0,0.00017348,2]
[408305985,1773388238337,-493.42894154,0.0001741,2]
[408305986,1773388238347,-1043.0,0.00017541,2]
[408305987,1773388238356,-1280.0,0.00017541,2]
[408305988,1773388238365,-774.46841921,0.00017541,2]
[408305989,1773388238378,-424.72947409,0.00017541,2]
[408305990,1773388238391,-502.01404727,0.00017541,2]
[408305991,1773388238402,-2051.78805943,0.00017541,2]
[408305992,1773388238412,-2463.0,0.00017541,2]
[408305993,1773388238422,-783.63011403,0.00017808,2]
[408305994,1773388238433,-1159.55763055,0.00017963,2]
[408305995,1773388238444,-180.77780095,0.00017963,2]
[408305996,1773388238455,-166.66,0.00018164,2]
[408305997,1773388238466,-493.42894154,0.0001824,2]
[408305998,1773388238475,-499.99,0.00018533,2]
[408305999,1773388238484,-166.66,0.00018546,2]
[408306000,1773388238494,-151.0,0.00018606,2]
[408306001,1773388238504,-1159.55763055,0.00018609,2]
[408306002,1773388238514,-446.22118414,0.00018616,2]
[408306003,1773388238523,-1199.0,0.00018752,2]
[408306004,1773388238532,-168.0,0.00018906,2]
[408306005,1773388238542,-166.66,0.00018928,2]
[408306006,1773388238552,-493.42894154,0.0001907,2]
[408306007,1773388238561,-200.67,0.00019144,2]
[408306008,1773388238571,-150.98757151,0.00019178,2]
[408306009,1773388238582,-209.47562092,0.00019178,2]
[408306010,1773388238592,-150.0,0.00019178,2]
[408306011,1773388238601,-500.0,0.00019178,2]
[408306012,1773388238611,-153.46310958,0.00019178,2]
[408306013,1773388238621,-150.0,0.00019178,2]
[408306014,1773388238630,-152.75558059,0.00019178,2]
[408306015,1773388238644,-152.07169225,0.00019178,2]
[408306016,1773388238653,-150.0,0.00019178,2]
[408306017,1773388238662,-153.02955251,0.00019178,2]
[408306018,1773388238672,-500.0,0.00019178,2]
[408306019,1773388238681,-152.35349863,0.00019178,2]
[408306020,1773388238691,-1500.0,0.00019189,2]
[408306021,1773388238700,-168.0,0.00019194,2]
[408306022,1773388238710,-1632.0,0.000192,2]
[408306023,1773388238720,-1132.0,0.000192,2]
[408306024,1773388238730,-910.0,0.000192,2]
[408306025,1773388238739,-2000.0,0.00019205,2]
[408306026,1773388238749,-200.0,0.00019225,2]
[408306027,1773388238758,-150.0,0.00019233,2]
[408306028,1773388238768,-500.0,0.00019233,2]
[408306029,1773388238778,-150.0,0.00019233,2]
[408306030,1773388238788,-500.0,0.00019233,2]
[408306031,1773388238797,-1159.55763055,0.00019254,2]
[408306032,1773388238807,-154.15935752,0.00019288,2]
[408306033,1773388238816,-467.01829713,0.00019288,2]
[408306034,1773388238826,-560.58495039,0.00019288,2]
[408306035,1773388238835,-168.0,0.00019291,2]
[408306036,1773388238845,-166.66,0.00019311,2]
[408306037,1773388238854,-168.0,0.0001934,2]
[408306038,1773388238864,-168.0,0.00019463,2]
[408306039,1773388238873,-168.0,0.00019589,2]
[408306040,1773388238882,-610.7202325,0.000196,2]
[408306041,1773388238893,-166.66,0.00019693,2]
[408306042,1773388238902,-354.17572161,0.00019763,2]
[408306043,1773388238912,-2563.0,0.00019863,2]
[408306044,1773388238921,-194.26629754,0.000199,10]
[408306045,1773388238931,-291.72159278,0.000199,10]
[408306046,1773388238940,-266.76366456,0.000199,10]
[408306047,1773388238950,-282.47605265,0.000199,10]
[408306048,1773388238960,-1159.55763055,0.000199,2]
[408306049,1773388238970,-180.77780095,0.000199,2]
[408306050,1773388238979,-493.42894154,0.000199,2]
[408306051,1773388238989,-160.61307676,0.000199,2]
[408306052,1773388238998,-178.21196007,0.000199,2]
[408306053,1773388239013,-4254.54949631,0.000199,2]
[408306054,1773388239026,-168.0,0.00019917,2]
[408306055,1773388239035,-350.0,0.00019952,2]
[408306056,1773388239047,-500.0,0.00019973,2]
[408306057,1773388239056,-500.0,0.00019973,2]
[408306058,1773388239065,-500.0,0.00019973,2]
[408306059,1773388239075,-500.0,0.00019973,2]
[408306060,1773388239085,-501.81568154,0.00019973,2]
[408306061,1773388239095,-500.0,0.00019973,2]
[408306062,1773388239106,-500.0,0.00019973,2]
[408306063,1773388239115,-500.0,0.00019973,2]
[408306064,1773388239125,-500.0,0.00019973,2]
[408306065,1773388239134,-500.0,0.00019973,2]
[408306066,1773388239145,-500.0,0.00019973,2]
[408306067,1773388239154,-500.0,0.00019973,2]
[408306068,1773388239163,-500.0,0.00019973,2]
[408306069,1773388239173,-350.81480094,0.00019973,2]
[408306070,1773388239182,-500.0,0.00019973,2]
[408306071,1773388239191,-151.0,0.00019997,2]
[408306072,1773388239200,-300.0,0.00019999,2]
[408306073,1773388239210,-6855.42139798,0.0002,2]
[408306074,1773388239223,-2654.24976943,0.0002,2]
[408306075,1773388239889,-407.14682167,0.00019973,2]
[408306076,1773388239899,-4302555.40350206,0.0002,2]
[408306081,1773388239955,-776.90309751,0.0002,2]
[408306086,1773388240030,-414.0,0.00017541,2]
[408306087,1773388240041,-81.28295223,0.0002,2]
[408306094,1773388242848,-4727.60927789,0.00016672,2]
[408306095,1773388242858,-65390.09641549,0.0002,2]
[408306096,1773388243094,-10115.34704922,0.0002,2]
[408306122,1773388525980,1382.0,0.0003287,120]
[408306123,1773388526779,1476.0,0.0003287,120]
[408306124,1773388528886,450.0,0.0003287,120]
[408306125,1773388529666,154.18851376,0.0003287,120]
[408306133,1773388704110,227.0,0.0003287,120]
[408306135,1773388765588,162.84398187,0.0003287,120]
[408306152,1773388919917,184.67968024,0.00032876,120]
[408306153,1773388923142,709.8,0.000328,120]
[408306164,1773389017729,164.22,9.494e-05,2]
[408306165,1773389017919,164.22,0.00011077,2]
[408306166,1773389018149,164.22,0.00012659,2]
[408307973,1773389109739,4290.0,0.00032876,120]
[408308383,1773389129865,-2655.7,0.00047828,90]
[408308384,1773389129892,-500.0,0.00047828,120]
[408308386,1773389129919,-97289.59,0.00047828,120]
[408308387,1773389129945,-651.84979119,0.00047828,120]
[408308389,1773389129972,-271.89555801,0.00047828,120]
[408308390,1773389129997,-173.39638857,0.00047828,120]
[408308392,1773389130022,-303.20418148,0.00047828,60]
[408308393,1773389130052,-344.668459,0.00047828,30]
[408308395,1773389130077,-1034.95244803,0.00047828,120]
[408308396,1773389130103,-244.27393524,0.00047828,120]
[408308398,1773389130128,-1000.0,0.00047828,30]
[408308399,1773389130153,-1207.37597906,0.00047828,60]
[408308401,1773389130179,-500000.0,0.00047828,30]
[408308402,1773389130204,-1226.02125777,0.00047828,30]
[408308404,1773389130232,-700.87264205,0.00047828,90]
[408308406,1773389130263,-251.30478334,0.00047828,30]
[408308407,1773389130292,-172.55485305,0.00047828,120]
[408308409,1773389130318,-292.80352522,0.00047828,30]
[408308410,1773389130342,-160.22022085,0.00047828,120]
[408308412,1773389130367,-176.0864443,0.00047828,120]
[408308413,1773389130393,-314.32031867,0.00047828,120]
[408308415,1773389130418,-206.50913107,0.00047828,90]
[408308416,1773389130444,-185.82623099,0.00047828,120]
[408308418,1773389130469,-326.76048309,0.00047828,120]
[408308419,1773389130495,-184.26401726,0.00047828,60]
[408308421,1773389130524,-588.47139973,0.00047828,120]
[408308422,1773389130549,-742.61177063,0.00047828,30]
[408308424,1773389130574,-847.96701044,0.00047828,120]
[408308425,1773389130599,-963.34585908,0.00047828,31]
[408308427,1773389130624,-1934.2976881,0.00047828,30]
[408308428,1773389130650,-169.25454884,0.00047828,120]
[408308430,1773389130678,-208.60517838,0.00047828,120]
[408308431,1773389130705,-270.16537046,0.00047828,120]
[408308433,1773389130731,-1769.50913179,0.00047828,120]
[408308434,1773389130759,-295.44290053,0.00047828,30]
[408308436,1773389130784,-184.56298725,0.00047828,30]
[408308437,1773389130808,-258.06119494,0.00047828,120]
[408308439,1773389130833,-318.52098824,0.00047828,120]
[408308440,1773389130858,-1642.17977993,0.00047828,30]
[408308442,1773389130882,-152.72870203,0.00047828,120]
[408308443,1773389130907,-156.16809462,0.00047828,30]
[408308445,1773389130931,-919.20337758,0.00047828,30]
[408308446,1773389130955,-605.89445299,0.00047828,30]
[408308448,1773389130979,-537.92093958,0.00047828,120]
[408308449,1773389131004,-1003.54802066,0.00047828,120]
[408308451,1773389131028,-917.09899474,0.00047828,120]
[408308452,1773389131054,-430.12416655,0.00047828,120]
[408308454,1773389131079,-500.0,0.00047828,30]
[408308455,1773389131106,-2765.99202735,0.00047828,30]
[408308457,1773389131131,-511.33725597,0.00047828,120]
[408308458,1773389131156,-200.0,0.00047828,120]
[408308460,1773389131183,-262.393807,0.00047828,120]
[408308461,1773389131209,-1276.04871622,0.00047828,120]
[408308467,1773389131431,400.0,0.00047828,90]
[408308473,1773389131681,829.03127683,0.00047828,30]
[408308544,1773389135204,810.29768538,0.00047828,30]
[408308553,1773389135621,268.69748994,0.00047828,30]
[408308560,1773389135910,429.02534882,0.00047828,90]
[408308750,1773389145193,-501.86761676,0.00047828,90]
[408309699,1773389194790,-214.7,0.00021089,30]
[408309700,1773389194819,-214.7,0.00021089,30]
[408309702,1773389194845,-214.7,0.00021089,30]
[408309703,1773389194877,-214.7,0.00021089,30]
[408309705,1773389194912,-214.7,0.00021089,30]
[408309707,1773389194937,-214.7,0.00021089,30]
[408309708,1773389194973,-298.1884408,0.00027952,40]
[408309710,1773389195001,-3535.8888377,0.00028,60]
[408309711,1773389195030,-888.4858364,0.00029568,48]
[408309713,1773389195058,-500.0,0.00032024,30]
[408309714,1773389195084,-500.0,0.00032024,30]
[408309716,1773389195112,-500.0,0.00032024,30]
[408309717,1773389195143,-500.0,0.00032024,30]
[408309719,1773389195171,-255.96292911,0.00032024,30]
[408309720,1773389195198,-500.0,0.00032024,40]
[408309722,1773389195226,-500.0,0.00032024,40]
[408309723,1773389195256,-500.0,0.00032024,40]
[408309725,1773389195284,-184.77383357,0.00032024,40]
[408309731,1773389195563,-500.0,0.00032024,30]
[408309732,1773389195594,-801.65599615,0.00032877,120]